Cogmind - Beta 13 @@@ ROGUE MODE // 2024.04.06 @ 22:55:47 Player: Grewsome Result: Destroyed by S-10 Pest with Light Assault Rifle Performance ------------- Evolutions (1) 500 Regions Visited (3) 600 Robots Destroyed (32) 160 Value Destroyed (749) 749 Prototype IDs (0) 0 Alien Tech Used (0) 0 Bonus (0) 0 TOTAL SCORE: 2009 Bonus ------- None Cogmind --------- Core Integrity 0/400 Matter 9/300 Energy 100/100 System Corruption 0% Temperature Cool (0) Movement Rolling (100) Location -9/Mines Parts ------- > --- POWER (1) -------- (None) > --- PROPULSION (2) --- Compact Wheel > --- UTILITY (4) ------ Medium Storage Unit Signal Interpreter > --- WEAPON (2) ------- (None) > --- INVENTORY (10) --- Heavy Ion Engine Improved Flight Unit Medium Matter Pod (0) Assault Rifle Rocket Launcher Datajack Enhanced Flamer Peak State ------------ > --- POWER ------------ Ion Engine > --- PROPULSION ------- Wheel Wheel > --- UTILITY ---------- Medium Storage Unit Signal Interpreter Improved Terrain Scanner Hacking Suite > --- WEAPON ----------- Mini Grenade Launcher Mining Laser > --- INVENTORY -------- Heavy Ion Engine Improved Flight Unit Assault Rifle Rocket Launcher Rocket Launcher Datajack [Rating: 15] Favorites ----------- Power Light Ion Engine Engine Light Ion Engine Propulsion Wheel Wheel Wheel Utility Improved Terrain Scanner Device Improved Terrain Scanner Storage Medium Storage Unit Processor Signal Interpreter Hackware Hacking Suite Weapon Rocket Launcher Ballistic Gun Assault Rifle Launcher Rocket Launcher Special Weapon Mining Laser Build | -11 -10 -9 -9 ------- Run | Yrd Mat Mat Min Slots Evolved 2 | . . 2 . Power . | . . . . Propulsion . | . . . . Utility 2 | . . 2 . Weapon . | . . . . Parts Attached 23 | 9 6 7 1 Power 3 | 2 1 . . Engine 3 | 2 1 . . Core . | . . . . Reactor . | . . . . Propulsion 6 | 3 1 2 . Treads . | . . . . Leg . | . . . . Wheel 6 | 3 1 2 . Hover . | . . . . Flight . | . . . . Utility 8 | 2 2 4 . Device 2 | 1 . 1 . Storage 4 | 1 1 2 . Processor 1 | . . 1 . Hackware 1 | . 1 . . Protection . | . . . . Artifact . | . . . . Weapon 6 | 2 2 1 1 Energy Gun . | . . . . Energy Cannon . | . . . . Ballistic Gun 2 | 2 . . . Ballistic Cannon . | . . . . Launcher 3 | . 1 1 1 Special Weapon 1 | . 1 . . Impact Weapon . | . . . . Slashing Weapon . | . . . . Piercing Weapon . | . . . . Special Melee Weapon . | . . . . Unidentified Prototypes . | . . . . Parts Lost 9 | . . 8 1 Power 1 | . . 1 . Propulsion 3 | . . 3 . Utility 2 | . . 2 . Weapon 3 | . . 2 1 Highest Loss Streak 5 | . . 5 1 To Critical Strikes . | . . . . Average Slot Usage (%) 85 | . 94 75 39 Engine 9 | . 11 6 . Wheel 24 | . 27 19 11 Device 9 | . 11 4 . Storage 13 | . 14 11 11 Processor 3 | . . 8 11 Hackware 3 | . 2 6 . Ballistic Gun 7 | . 11 . . Launcher 11 | . 12 10 6 Special Weapon 3 | . 1 8 . Naked Turns . | . . . . Heaviest Build 30 | 14 20 30 14 Greatest Support 26 | 26 20 26 16 Greatest Overweight (x) 3 | . 1 3 . Average Overweight (x) . | . . . . Largest Inventory Capacity 10 | 8 10 10 10 Average Capacity 8 | 6 8 9 10 Most Carried 10 | 2 10 7 7 Average Carried 5 | . 5 5 6 Final Capacity 10 | 8 10 10 10 Final Carried 7 | 2 6 7 7 Class Distribution -------------------- 76% | Mutant 23% | Scavenger-Mutant Dominant Class ---------------- Mutant | -10/Materials Scavenger-Mutant | -9/Materials Mutant | -9/Mines Resources | -11 -10 -9 -9 ----------- Run | Yrd Mat Mat Min Matter Collected 578 | 304 149 105 20 Remotely . | . . . . Salvage Created 619 | 108 384 122 5 Parts 54 | 10 24 19 1 Haulers Intercepted 3 | . 2 1 . Recyclers Shooed . | . . . . Parts Field Recycled . | . . . . Retrieved Matter . | . . . . Parts Self-Destructed . | . . . . Prevented . | . . . . Kills | -11 -10 -9 -9 ------- Run | Yrd Mat Mat Min Combat Hostiles Destroyed 17 | . 13 3 1 Guns 2 | . 2 . . AOE 15 | . 11 3 1 Classes Destroyed 9 | 2 5 2 . Builder 2 | . . 2 . Tunneler 3 | 2 1 . . Hauler 3 | . 2 1 . Recycler 1 | 1 . . . Operator 2 | . 1 1 . Watcher 4 | . 2 2 . Swarmer 4 | . 3 . 1 Grunt 11 | . 10 1 . Sentry 2 | . . 2 . Best Kill Streak 7 | 3 6 7 1 Combat Bots Only 5 | . 5 2 1 Max Kills in Single Turn 2 | 1 2 2 1 Gunslinging . | . . . . Exploded 2 | . 2 1 1 Melee . | . . . . Uniques/NPCs Destroyed . | . . . . Combat | -11 -10 -9 -9 -------- Run | Yrd Mat Mat Min Hostile Shots Fired 125 | . 16 56 53 Missed 41 | . 5 19 17 Damage Taken 1050 | . 198 561 291 Core 488 | . 82 259 147 Absorbed by Shields . | . . . . Core Remaining (%) 83 | 100 67 . . Volleys Fired 58 | 4 33 20 1 Largest 2 | 2 1 1 1 Hottest 40 | 40 33 30 33 Shots Fired 62 | 8 33 20 1 Gun 22 | 8 14 . . Cannon . | . . . . Launcher 40 | . 19 20 1 Special . | . . . . Kinetic 22 | 8 14 . . Thermal . | . . . . Explosive 40 | . 19 20 1 Electromagnetic . | . . . . Robot Hit Streak 4 | 2 4 2 . Robot Miss Streak 2 | 1 2 1 . Penetration Max . | . . . . Secondary Targets . | . . . . Shots Hit Robots 21 | 4 14 3 . Core Hits 50 | 4 31 14 1 Critical Kills . | . . . . Critical Parts Destroyed . | . . . . Critical Strikes . | . . . . Melee Attacks . | . . . . Impact . | . . . . Slashing . | . . . . Piercing . | . . . . Sneak Attacks . | . . . . Combat Hostiles . | . . . . Follow-up Attacks . | . . . . Damage Inflicted 2600 | 47 1432 998 123 Guns 138 | 47 91 . . Cannons . | . . . . Explosions 2439 | . 1318 998 123 Melee . | . . . . Ramming 23 | . 23 . . Kinetic 138 | 47 91 . . Thermal 150 | . . 150 . Explosive 2289 | . 1318 848 123 Electromagnetic . | . . . . Impact . | . . . . Slashing . | . . . . Piercing . | . . . . Highest Corruption . | . . . . Average Corruption . | . . . . Corruption Purged . | . . . . Corruption Blocked . | . . . . Overload Shots . | . . . . Overflow Damage 77 | . . 77 . Projectiles . | . . . . Explosions 77 | . . 77 . Melee . | . . . . Knockbacks . | . . . . Impact . | . . . . Kinetic . | . . . . Secondary . | . . . . Self-Inflicted Damage 146 | . 81 65 . Shots 3 | . 2 1 . Rammed 1 | . 1 . . Targets Rammed 1 | . 1 . . Kicked . | . . . . Crushed . | . . . . Highest Temperature 14 | . 5 14 . Average Temperature 4 | . 2 7 . Received Heat Transfer 189 | . 42 147 . Siege Activations . | . . . . Robots Corrupted . | . . . . Combat Hostiles . | . . . . Parts Fried . | . . . . Impact Corruptions . | . . . . Robots Melted . | . . . . Combat Hostiles . | . . . . Parts Melted . | . . . . Heat Transferred 100 | . . 100 . Parts Sabotaged . | . . . . Parts Stolen . | . . . . Parts Stripped . | . . . . Power Chain Reactions . | . . . . Alert | -11 -10 -9 -9 ------- Run | Yrd Mat Mat Min Peak Influence 390 | 15 389 390 183 Initial 140 | . 9 102 140 Average 169 | 5 161 237 175 Maximum Alert Level 1 | . 1 1 . Low Security (%) 56 | 100 54 33 100 Level 1 43 | . 45 66 . Level 2 . | . . . . Level 3 . | . . . . Level 4 . | . . . . Level 5 . | . . . . High Security . | . . . . Max Security . | . . . . Squads Dispatched 4 | . 3 1 . Investigation 3 | . 2 1 . Extermination . | . . . . Reinforcement 1 | . 1 . . Assault . | . . . . Garrison . | . . . . Intercept . | . . . . Searches Triggered . | . . . . Construction Impeded . | . . . . Haulers Reinforced . | . . . . Active Scanning Responses . | . . . . Cargo Convoy Interrupts . | . . . . Stealth | -11 -10 -9 -9 --------- Run | Yrd Mat Mat Min Distress Signals 1 | . 1 . . Communications Jammed . | . . . . Distress Signals . | . . . . Times Spotted 35 | . 16 12 7 Peak Tracking Total 5 | . 5 4 5 Tactical Retreats 2 | . 1 1 . Traps | -11 -10 -9 -9 ------- Run | Yrd Mat Mat Min Traps Triggered 3 | . 2 1 . Indirectly . | . . . . Trap Hack Attempts . | . . . . Triggered . | . . . . Disarmed . | . . . . Reprogrammed . | . . . . Reused . | . . . . Traps Extracted . | . . . . Installed . | . . . . Triggered . | . . . . Machines | -11 -10 -9 -9 ---------- Run | Yrd Mat Mat Min Machines Disabled 8 | . 3 5 . Max in Single Turn 3 | . 1 3 . Machines Repaired . | . . . . Machines Dismantled . | . . . . Machines Sabotaged . | . . . . Overloaded Fab Kills . | . . . . Hacking | -11 -10 -9 -9 --------- Run | Yrd Mat Mat Min Machines Accessed 7 | . 7 . . Terminals 7 | . 7 . . Fabricators . | . . . . Repair Stations . | . . . . Recycling Units . | . . . . Scanalyzers . | . . . . Garrison Access . | . . . . Total Hacks 18 | . 18 . . Successful 9 | . 9 . . Failed 9 | . 9 . . Catastrophic . | . . . . Database Lockouts . | . . . . Manual . | . . . . Terminals 18 | . 18 . . Fabricators . | . . . . Repair Stations . | . . . . Recycling Units . | . . . . Scanalyzers . | . . . . Garrison Access . | . . . . Terminal Hacks 9 | . 9 . . Record 1 | . 1 . . Emergency Access Points 1 | . 1 . . Terminal Index 1 | . 1 . . Recycling Unit Index 1 | . 1 . . Alert Level 1 | . 1 . . Unreport Threat 1 | . 1 . . Dispatch Records 1 | . 1 . . Zone Layout 2 | . 2 . . Fabricator Hacks . | . . . . Repair Station Hacks . | . . . . Recycling Unit Hacks . | . . . . Scanalyzer . | . . . . Garrison Access Hacks . | . . . . Unauthorized Hacks . | . . . . Terminals . | . . . . Fabricators . | . . . . Repair Stations . | . . . . Recycling Units . | . . . . Scanalyzers . | . . . . Garrison Access . | . . . . Data Cores Recovered . | . . . . Used . | . . . . Hacking Detections 7 | . 7 . . Full Trace Events 3 | . 3 . . Feedback Events . | . . . . Feedback Blocked . | . . . . Robot Schematics Acquired . | . . . . Robots Built . | . . . . Authchips . | . . . . Time . | . . . . Total Robot Build Rating . | . . . . Part Schematics Acquired . | . . . . Parts Built . | . . . . Authchips . | . . . . Time . | . . . . Total Part Build Rating . | . . . . Parts Repaired . | . . . . Time . | . . . . Parts Recycled . | . . . . Recycled Matter . | . . . . Retrieved Matter . | . . . . Retrieved Components . | . . . . Parts Scanalyzed . | . . . . Part Schematics Acquired . | . . . . Parts Damaged . | . . . . Bothacking | -11 -10 -9 -9 ------------ Run | Yrd Mat Mat Min Used RIF Installer . | . . . . Robots Hacked . | . . . . Non-combat . | . . . . Combat . | . . . . Robot Hacks Applied . | . . . . Relay Couplers Released . | . . . . Fabnet Peak Effective % . | . . . . Robots Rewired . | . . . . Allies Hacked . | . . . . Hacks Repelled . | . . . . Allies | -11 -10 -9 -9 -------- Run | Yrd Mat Mat Min Total Allies . | . . . . Largest Group . | . . . . Highest-Rated Group . | . . . . Highest-Rated Ally . | . . . . Total Orders . | . . . . Ally Attacks . | . . . . Total Damage . | . . . . Kills . | . . . . Allies Corrupted . | . . . . Allies Melted . | . . . . Intel | -11 -10 -9 -9 ------- Run | Yrd Mat Mat Min Robot Analysis Total . | . . . . Derelict Logs Recovered . | . . . . Drone Launches . | . . . . Drone Recoveries . | . . . . Exploration | -11 -10 -9 -9 ------------- Run | Yrd Mat Mat Min Turns Passed 1166 | 84 718 269 95 Spaces Moved 1149 | 64 752 242 91 Core 15 | 9 . 6 . Treads . | . . . . Legs . | . . . . Wheels 1134 | 55 752 236 91 Hover . | . . . . Flight . | . . . . Fastest Speed 50 | 50 80 80 100 Average Speed 83 | 80 80 86 100 Slowest Speed 200 | 90 95 200 100 Overloaded Moves . | . . . . Propulsion Burnouts . | . . . . Robots Hopped . | . . . . Cave-ins Triggered . | . . . . Exploration Rate (%) 36 | 5 84 30 27 Regions Visited 3 Branch Regions 1 Pre-discovered Areas . | . . . . Known Exits Taken 1 | . . 1 . Unknown Exits Taken 2 | 1 1 . . Scrap Searched . | . . . . Spaces Dug . | . . . . Terrain Destroyed 302 | . 164 130 8 Melee . | . . . . Projectile . | . . . . AOE 302 | . 164 130 8 Terrain Rammed . | . . . . Walls Destroyed . | . . . . Machines Disabled . | . . . . Actions | -11 -10 -9 -9 --------- Run | Yrd Mat Mat Min Total 1297 | 89 832 282 94 Wait 32 | . 29 3 . Move 1146 | 63 751 241 91 Hop . | . . . . Pick Up 28 | 11 9 7 1 Fast Attach 1 | . . 1 . Attach 20 | 9 4 6 1 Detach 2 | . 1 1 . Swap 2 | . 2 . . Drop 7 | 2 2 3 . Fire 58 | 4 33 20 1 Melee . | . . . . Ram 1 | . 1 . . Kick . | . . . . Crush . | . . . . Escape Stasis . | . . . . Rewire . | . . . . Trap . | . . . . Miscellaneous . | . . . . Route ------- -11/Scrapyard -10/Materials (discovered 5 exits: [*Mat x3] / [*Min x2]) -9/Materials (discovered 2 exits: [*Mat] / *Min) -9/Mines (discovered 1 exit: [*Mat]) History --------- Turn | Location | Event 23 | -11/Scrapyard | Discovered new exit (range 15) 85 | -11/Scrapyard | Entered Materials 187 | -10/Materials | Discovered new exit (range 7) 300 | -10/Materials | Build established: Mutant 386 | -10/Materials | Discovered new exit (range 16) 396 | -10/Materials | Discovered new exit (range 8) 479 | -10/Materials | Discovered new exit (range 16) 565 | -10/Materials | Discovered new exit (range 10) 803 | -10/Materials | Entered another Materials area 803 | -9/Materials | Evolved 2 slots: Utility x2 964 | -9/Materials | Discovered new exit (range 4) 1027 | -9/Materials | Discovered new exit (range 16) 1035 | -9/Materials | Lost 5 parts (1p1n2u1w) 1050 | -9/Materials | Core integrity fell below 50% 1071 | -9/Materials | Identified exit to Mines 1072 | -9/Materials | Entered Mines 1086 | -9/Mines | Lost 3 parts (2n1w) 1088 | -9/Mines | Core integrity fell below 20% 1137 | -9/Mines | A weapon hastily lodged in a ceiling crevice suddenly fell to the ground 1158 | -9/Mines | Discovered new exit (range 9) 1167 | -9/Mines | Destroyed by S-10 Pest with Light Assault Rifle Last Messages --------------- 01051_ Acquired Com. Wheel. 01052_ Com. Wheel destroyed. 01055_ Mni. Grenade Launcher destroyed. 01067_ Acquired Med. Matter Pod. 01071_ Machine disabled. 01071_ EXIT=IDENTIFIED: MINES LOCATION=MINES GOAL=ESCAPE Something is scanning the area. 01074_ S-10 Pest destroyed. 01078_ Acquired 20 matter. 01087_ S-10 Pest destroyed. 01135_ Rocket Launcher destroyed. 01137_ An Enh. Flamer has been hastily shoved under some rubble with a note attached: "One is never enough." 01139_ Acquired Enh. Flamer. 01158_ K-01 Serf collects debris. 01158_ EXIT=FOUND 01165_ K-01 Serf collects debris. Map ----- +----------------------------------------------------+ | ??????????????????????????????????? | | ??????????????????????????????????? | | ??????????????????????????????????? | | ??????????????????????????????????? | | ??????????????????????????????????? | | ??????????????????????????????????? | | ??????????????????????????????????? | | ??????????????????????????????????? | | ??????????????????????????????????? | | ??????????????????????????????????? | | ?????????????????????????# ?????? | | ????????????????????????? ????? | | ???????????????????????? #????? | | ???????????????????????? #????? | | ????????????????????????# ##???? | | ????????????????????????# s ##??? | | ????????????????????????? ##?? | | ????????????????????????? ##? | | ????????????????????????? #? | | ????????????????????????? #? | | ?????????????????????????# #? | | ????????????????????????##su #?? | | ?????????????????????#### < #??? | | ?????????????????????? #??? | | ???????????????????????# #??? | | ???????????????????????# @ #??? | | ???????????????????????## k #??? | | ????????????????????????##s# ##??? | | ?????????????????????????# ## #???? | | ?????????????????????????# ## ###?? | | ?????????????????????????# #?? | | ????????????????????########### #?? | | ???????????????????## ##????# #?? | | ????????????#??????# #????# #?? | | ???????????## ?????# #????# #?? | | ??????????## ####### #????# #?? | | ??????????# #????# #?? | | ??????????# ###### #?? | | ??????????## #### #?? | | ???????????## ##?## #######?? | | ????????????## ##### ##???????? | | ?????????????# ####????????? | | ?????????????# #???????????? | | ?????????????# ##### #???????????? | | ?????????????# #???# #???????????? | | ?????????????# #???# #???????????? | | ?????###?????# #???# #???????????? | | ????## #????# ##??# #???????????? | | ???## ????# #??# #???????????? | | ???# #???# ???# #####???????? | +----------------------------------------------------+ Best States ------------- Heat Dissipation 28 Energy Generation 10 Energy Capacity 250 Matter Stores 290 Matter Capacity 300 Sight Range 16 Terrain Scan Range 16 Terrain Scan Density 10 Evasion (%) 44 Offensive Hacking 10 Item Schematics ----------------- None Robot Schematics ------------------ None Fabricated ------------ Nothing Alien Tech Used ----------------- None Achievements -------------- None Challenges ------------ None Game ------ Seed WeldingBattleRail Manual? 0 Play Time 00:18:38 Cumulative 7.9 hours Start 2024.04.06 @ 22:37:58 End 2024.04.06 @ 22:55:47 Sessions 1 Manual Loads 0 Difficulty Rogue Special Mode None Game No. 12 Rogue 9 Adventurer 3 Explorer 0 Win Type - Total 0 Types 0/0/0/0/0/0/0/0/0 Lore% 3 Gallery% 21 Achievement% 16 Wizard Run 0 Options --------- Layout 1 ASCII 0 Keyboard 0 Movement Mouse Keybinds 0 Fullscreen 1 Font 32/SmallcapsGlow Map View 50x35 Zoom Use 0% Tactical HUD 1 Map Filters NONE Filters NONE Steam 1 RUN: f64d36e7-06b6-4976-82cb-dd4e53c960d0